[Event "Titled Tuesday Blitz March 15 Late 2022"]
[White "Kovanova, Baira"]
[Black "Zhurbinsky, David"]
[WhiteFideId "4164083"]
[BlackFideId "2072904"]
[WhiteElo "2190"]
[BlackElo "2590"]
[Result "1-0"]
[Round "09"]
[TimeControl "180+1"]
[Date "2022.03.16"]
[WhiteClock "0:00:12"]
[BlackClock "0:00:14"]

1. e4 {[%clk 0:02:49]}  e5 {[%clk 0:03:00]} 2. Nf3 {[%clk 0:02:48]}  Nc6 {[%clk 0:03:00]} 3. Bb5 {[%clk 0:02:49]}  a6 {[%clk 0:03:00]} 4. Ba4 {[%clk 0:02:49]}  Nf6 {[%clk 0:03:01]} 5. O-O {[%clk 0:02:49]}  Be7 {[%clk 0:03:00]} 6. d3 {[%clk 0:02:49]}  b5 {[%clk 0:03:00]} 7. Bb3 {[%clk 0:02:49]}  O-O {[%clk 0:03:01]} 8. Re1 {[%clk 0:02:41]}  Bb7 {[%clk 0:02:57]} 9. a4 {[%clk 0:02:40]}  b4 {[%clk 0:02:56]} 10. Nbd2 {[%clk 0:02:35]}  d5 {[%clk 0:02:55]} 11. exd5 {[%clk 0:02:32]}  Nxd5 {[%clk 0:02:56]} 12. Nc4 {[%clk 0:02:30]}  f6 {[%clk 0:02:45]} 13. d4 {[%clk 0:02:19]}  Nxd4 {[%clk 0:02:38]} 14. Nxd4 {[%clk 0:02:19]}  exd4 {[%clk 0:02:39]} 15. Qxd4 {[%clk 0:02:19]}  c5 {[%clk 0:02:36]} 16. Qg4 {[%clk 0:02:17]}  Kh8 {[%clk 0:02:33]} 17. Bd2 {[%clk 0:02:13]}  f5 {[%clk 0:02:25]} 18. Qh3 {[%clk 0:02:12]}  Bf6 {[%clk 0:02:19]} 19. Rad1 {[%clk 0:02:12]}  Re8 {[%clk 0:02:10]} 20. Qxf5 {[%clk 0:02:09]}  Rf8 {[%clk 0:01:58]} 21. Qh3 {[%clk 0:01:41]}  Bd4 {[%clk 0:01:48]} 22. Be3 {[%clk 0:01:40]}  Bxe3 {[%clk 0:01:37]} 23. fxe3 {[%clk 0:01:40]}  Qf6 {[%clk 0:01:33]} 24. Rf1 {[%clk 0:01:34]}  Qg5 {[%clk 0:01:29]} 25. Qd7 {[%clk 0:01:27]}  Nxe3 {[%clk 0:00:54]} 26. Qxb7 {[%clk 0:00:59]}  Nxf1 {[%clk 0:00:54]} 27. Nd6 {[%clk 0:00:51]}  Qe3+ {[%clk 0:00:22]} 28. Kh1 {[%clk 0:00:51]}  h6 {[%clk 0:00:19]} 29. Nf7+ {[%clk 0:00:49]}  Kh7 {[%clk 0:00:20]} 30. Rxf1 {[%clk 0:00:49]}  Rae8 {[%clk 0:00:14]} 31. Qd5 {[%clk 0:00:39]}  Re5 {[%clk 0:00:04]} 32. Qd3+ {[%clk 0:00:20]}  Qxd3 {[%clk 0:00:04]} 33. cxd3 {[%clk 0:00:21]}  Re7 {[%clk 0:00:05]} 34. Kg1 {[%clk 0:00:20]}  Kg6 {[%clk 0:00:05]} 35. Ne5+ {[%clk 0:00:19]}  Rxe5 {[%clk 0:00:05]} 36. Rxf8 {[%clk 0:00:19]}  Re2 {[%clk 0:00:05]} 37. Rf2 {[%clk 0:00:17]}  Re1+ {[%clk 0:00:05]} 38. Rf1 {[%clk 0:00:17]}  Re2 {[%clk 0:00:06]} 39. Rb1 {[%clk 0:00:17]}  Rd2 {[%clk 0:00:06]} 40. Bc4 {[%clk 0:00:18]}  a5 {[%clk 0:00:07]} 41. b3 {[%clk 0:00:18]}  Kf5 {[%clk 0:00:07]} 42. Re1 {[%clk 0:00:18]}  Kf4 {[%clk 0:00:07]} 43. h3 {[%clk 0:00:19]}  Kg3 {[%clk 0:00:07]} 44. Re3+ {[%clk 0:00:19]}  Kf4 {[%clk 0:00:07]} 45. Rf3+ {[%clk 0:00:19]}  Ke5 {[%clk 0:00:08]} 46. Kh2 {[%clk 0:00:20]}  g5 {[%clk 0:00:08]} 47. Kg3 {[%clk 0:00:20]}  h5 {[%clk 0:00:08]} 48. Re3+ {[%clk 0:00:18]}  Kd4 {[%clk 0:00:08]} 49. Re8 {[%clk 0:00:18]}  h4+ {[%clk 0:00:07]} 50. Kf3 {[%clk 0:00:18]}  Kc3 {[%clk 0:00:07]} 51. Rc8 {[%clk 0:00:18]}  Kd4 {[%clk 0:00:06]} 52. Rd8+ {[%clk 0:00:18]}  Kc3 {[%clk 0:00:07]} 53. Rd5 {[%clk 0:00:18]}  Rd1 {[%clk 0:00:08]} 54. Rxc5 {[%clk 0:00:18]}  Rf1+ {[%clk 0:00:07]} 55. Ke2 {[%clk 0:00:18]}  Rf4 {[%clk 0:00:06]} 56. Rxg5 {[%clk 0:00:18]}  Kb2 {[%clk 0:00:04]} 57. Rg4 {[%clk 0:00:18]}  Rf5 {[%clk 0:00:03]} 58. Rxh4 {[%clk 0:00:18]}  Re5+ {[%clk 0:00:04]} 59. Kd2 {[%clk 0:00:18]}  Rg5 {[%clk 0:00:04]} 60. Rg4 {[%clk 0:00:18]}  Rf5 {[%clk 0:00:04]} 61. d4 {[%clk 0:00:18]}  Ka3 {[%clk 0:00:05]} 62. d5 {[%clk 0:00:18]}  Rf2+ {[%clk 0:00:05]} 63. Kd3 {[%clk 0:00:18]}  Rf1 {[%clk 0:00:05]} 64. d6 {[%clk 0:00:18]}  Rd1+ {[%clk 0:00:05]} 65. Ke3 {[%clk 0:00:17]}  Rxd6 {[%clk 0:00:06]} 66. h4 {[%clk 0:00:17]}  Rd1 {[%clk 0:00:06]} 67. h5 {[%clk 0:00:18]}  Rh1 {[%clk 0:00:07]} 68. Rg5 {[%clk 0:00:17]}  Rh4 {[%clk 0:00:07]} 69. g4 {[%clk 0:00:17]}  Rh3+ {[%clk 0:00:07]} 70. Kf4 {[%clk 0:00:17]}  Rh1 {[%clk 0:00:07]} 71. Rxa5 {[%clk 0:00:17]}  Rh2 {[%clk 0:00:07]} 72. Rb5 {[%clk 0:00:17]}  Rf2+ {[%clk 0:00:08]} 73. Kg5 {[%clk 0:00:17]}  Rh2 {[%clk 0:00:08]} 74. h6 {[%clk 0:00:17]}  Rh1 {[%clk 0:00:08]} 75. a5 {[%clk 0:00:17]}  Re1 {[%clk 0:00:07]} 76. a6 {[%clk 0:00:17]}  Re7 {[%clk 0:00:08]} 77. Rb7 {[%clk 0:00:17]}  Re5+ {[%clk 0:00:08]} 78. Kf6 {[%clk 0:00:17]}  Re1 {[%clk 0:00:07]} 79. a7 {[%clk 0:00:16]}  Re8 {[%clk 0:00:07]} 80. h7 {[%clk 0:00:17]}  Rf8+ {[%clk 0:00:07]} 81. Kg7 {[%clk 0:00:17]}  Ra8 {[%clk 0:00:08]} 82. h8=Q {[%clk 0:00:16]}  Rxh8 {[%clk 0:00:08]} 83. Kxh8 {[%clk 0:00:16]}  Kb2 {[%clk 0:00:09]} 84. a8=Q {[%clk 0:00:16]}  Kc3 {[%clk 0:00:09]} 85. Qf8 {[%clk 0:00:15]}  Kc2 {[%clk 0:00:10]} 86. Qf2+ {[%clk 0:00:14]}  Kc3 {[%clk 0:00:11]} 87. Qe1+ {[%clk 0:00:14]}  Kb2 {[%clk 0:00:12]} 88. Qxb4 {[%clk 0:00:14]}  Kc2 {[%clk 0:00:13]} 89. Re7 {[%clk 0:00:14]}  Kb1 {[%clk 0:00:13]} 90. Re1+ {[%clk 0:00:13]}  Kc2 {[%clk 0:00:13]} 91. Re2+ {[%clk 0:00:12]}  Kb1 {[%clk 0:00:14]} 92. Qe1# {[%clk 0:00:12]} 1-0


[Site "https://www.chess.com"]

[Event "Titled Tuesday Blitz March 15 Late 2022"]
[White "Lewtak, Damian"]
[Black "Vovk, Orest"]
[WhiteFideId "1141724"]
[BlackFideId "14113490"]
[WhiteElo "2362"]
[BlackElo "2203"]
[Result "0-1"]
[Round "09"]
[TimeControl "180+1"]
[Date "2022.03.16"]
[WhiteClock "0:00:11"]
[BlackClock "0:00:33"]

1. d4 {[%clk 0:03:00]}  e5 {[%clk 0:02:57]} 2. dxe5 {[%clk 0:02:59]}  Nc6 {[%clk 0:02:57]} 3. Nf3 {[%clk 0:02:58]}  Qe7 {[%clk 0:02:58]} 4. Nc3 {[%clk 0:02:57]}  Nxe5 {[%clk 0:02:57]} 5. Nd5 {[%clk 0:02:58]}  Nxf3+ {[%clk 0:02:57]} 6. gxf3 {[%clk 0:02:58]}  Qd8 {[%clk 0:02:57]} 7. e4 {[%clk 0:02:58]}  d6 {[%clk 0:02:57]} 8. Bd3 {[%clk 0:02:50]}  Be6 {[%clk 0:02:54]} 9. Nf4 {[%clk 0:02:46]}  Nf6 {[%clk 0:02:52]} 10. Nxe6 {[%clk 0:02:43]}  fxe6 {[%clk 0:02:48]} 11. c3 {[%clk 0:02:43]}  Be7 {[%clk 0:02:35]} 12. Qb3 {[%clk 0:02:42]}  Qc8 {[%clk 0:02:33]} 13. Bc4 {[%clk 0:02:42]}  d5 {[%clk 0:02:30]} 14. exd5 {[%clk 0:02:40]}  exd5 {[%clk 0:02:31]} 15. Bxd5 {[%clk 0:02:41]}  Nxd5 {[%clk 0:02:30]} 16. Qxd5 {[%clk 0:02:42]}  c6 {[%clk 0:02:30]} 17. Qc4 {[%clk 0:02:38]}  Qd7 {[%clk 0:02:22]} 18. Be3 {[%clk 0:02:30]}  O-O-O {[%clk 0:02:11]} 19. Qg4 {[%clk 0:02:29]}  Bf6 {[%clk 0:02:04]} 20. Rd1 {[%clk 0:02:06]}  Qxg4 {[%clk 0:01:49]} 21. fxg4 {[%clk 0:02:07]}  Rxd1+ {[%clk 0:01:49]} 22. Kxd1 {[%clk 0:02:08]}  b6 {[%clk 0:01:47]} 23. Ke2 {[%clk 0:02:07]}  Re8 {[%clk 0:01:43]} 24. f4 {[%clk 0:02:05]}  Be7 {[%clk 0:01:33]} 25. Kf3 {[%clk 0:01:50]}  Bd6 {[%clk 0:01:13]} 26. f5 {[%clk 0:01:41]}  Be7 {[%clk 0:01:10]} 27. h4 {[%clk 0:01:39]}  Rd8 {[%clk 0:01:07]} 28. h5 {[%clk 0:01:37]}  h6 {[%clk 0:01:07]} 29. g5 {[%clk 0:00:51]}  Bxg5 {[%clk 0:01:03]} 30. Bxg5 {[%clk 0:00:51]}  hxg5 {[%clk 0:01:04]} 31. h6 {[%clk 0:00:51]}  gxh6 {[%clk 0:01:05]} 32. Rxh6 {[%clk 0:00:51]}  Rd1 {[%clk 0:01:01]} 33. Re6 {[%clk 0:00:45]}  Kd7 {[%clk 0:00:58]} 34. Re2 {[%clk 0:00:42]}  Rg1 {[%clk 0:00:56]} 35. a4 {[%clk 0:00:38]}  g4+ {[%clk 0:00:51]} 36. Kf4 {[%clk 0:00:38]}  g3 {[%clk 0:00:52]} 37. Kg5 {[%clk 0:00:37]}  Rf1 {[%clk 0:00:46]} 38. Kg6 {[%clk 0:00:30]}  Rf2 {[%clk 0:00:44]} 39. Re3 {[%clk 0:00:22]}  g2 {[%clk 0:00:42]} 40. Rg3 {[%clk 0:00:21]}  Rxb2 {[%clk 0:00:41]} 41. f6 {[%clk 0:00:19]}  Rf2 {[%clk 0:00:41]} 42. f7 {[%clk 0:00:15]}  Ke7 {[%clk 0:00:37]} 43. Re3+ {[%clk 0:00:15]}  Kd7 {[%clk 0:00:37]} 44. Rd3+ {[%clk 0:00:15]}  Ke7 {[%clk 0:00:35]} 45. Rg3 {[%clk 0:00:15]}  Rf6+ {[%clk 0:00:34]} 46. Kg5 {[%clk 0:00:11]}  Rxf7 {[%clk 0:00:33]} 0-1


[Site "https://www.chess.com"]

[Event "Titled Tuesday Blitz March 15 Late 2022"]
[White "Lysyj, Igor"]
[Black "Svane, Rasmus"]
[WhiteFideId "4150120"]
[BlackFideId "4657101"]
[WhiteElo "2611"]
[BlackElo "2645"]
[Result "0-1"]
[Round "09"]
[TimeControl "180+1"]
[Date "2022.03.15"]
[WhiteClock "0:00:11"]
[BlackClock "0:00:06"]

1. d4 {[%clk 0:03:00]}  d5 {[%clk 0:02:59]} 2. c4 {[%clk 0:02:59]}  e6 {[%clk 0:03:00]} 3. Nf3 {[%clk 0:02:59]}  a6 {[%clk 0:03:00]} 4. cxd5 {[%clk 0:02:56]}  exd5 {[%clk 0:03:01]} 5. Nc3 {[%clk 0:02:56]}  Nf6 {[%clk 0:03:00]} 6. Bg5 {[%clk 0:02:55]}  Be6 {[%clk 0:03:00]} 7. e3 {[%clk 0:02:54]}  Nbd7 {[%clk 0:02:59]} 8. Bd3 {[%clk 0:02:52]}  Bd6 {[%clk 0:03:00]} 9. h3 {[%clk 0:02:43]}  c6 {[%clk 0:02:59]} 10. Bf4 {[%clk 0:02:41]}  Qc7 {[%clk 0:02:59]} 11. Qd2 {[%clk 0:02:41]}  O-O {[%clk 0:02:54]} 12. O-O {[%clk 0:02:40]}  Rfe8 {[%clk 0:02:52]} 13. Rfe1 {[%clk 0:02:40]}  g6 {[%clk 0:02:52]} 14. Rac1 {[%clk 0:02:38]}  Nh5 {[%clk 0:02:49]} 15. Bh2 {[%clk 0:02:36]}  Bxh2+ {[%clk 0:02:46]} 16. Nxh2 {[%clk 0:02:36]}  Ng7 {[%clk 0:02:47]} 17. f3 {[%clk 0:02:33]}  Rad8 {[%clk 0:02:41]} 18. Qf2 {[%clk 0:02:29]}  Qd6 {[%clk 0:02:25]} 19. e4 {[%clk 0:02:25]}  dxe4 {[%clk 0:02:16]} 20. Nxe4 {[%clk 0:02:20]}  Qe7 {[%clk 0:02:02]} 21. a3 {[%clk 0:02:17]}  Nf6 {[%clk 0:02:00]} 22. Nc5 {[%clk 0:02:14]}  Qc7 {[%clk 0:02:00]} 23. Ng4 {[%clk 0:02:12]}  Nd5 {[%clk 0:01:33]} 24. Bf1 {[%clk 0:02:06]}  Nf5 {[%clk 0:01:27]} 25. Nxe6 {[%clk 0:01:58]}  fxe6 {[%clk 0:01:27]} 26. Ne5 {[%clk 0:01:55]}  Nf6 {[%clk 0:01:20]} 27. Rcd1 {[%clk 0:01:49]}  Qb6 {[%clk 0:01:20]} 28. Nc4 {[%clk 0:01:09]}  Qa7 {[%clk 0:01:20]} 29. g4 {[%clk 0:01:06]}  Nxd4 {[%clk 0:01:19]} 30. Kh1 {[%clk 0:01:06]}  c5 {[%clk 0:01:13]} 31. Bg2 {[%clk 0:01:02]}  b5 {[%clk 0:01:14]} 32. Ne5 {[%clk 0:01:01]}  Nd5 {[%clk 0:01:10]} 33. f4 {[%clk 0:01:01]}  Rf8 {[%clk 0:01:07]} 34. Rxd4 {[%clk 0:00:56]}  cxd4 {[%clk 0:01:05]} 35. Nc6 {[%clk 0:00:57]}  Qb6 {[%clk 0:00:49]} 36. Nxd8 {[%clk 0:00:56]}  Qxd8 {[%clk 0:00:46]} 37. Re4 {[%clk 0:00:44]}  Qf6 {[%clk 0:00:42]} 38. f5 {[%clk 0:00:39]}  exf5 {[%clk 0:00:39]} 39. Rxd4 {[%clk 0:00:36]}  Ne7 {[%clk 0:00:32]} 40. Rd7 {[%clk 0:00:36]}  Qe6 {[%clk 0:00:26]} 41. Qd4 {[%clk 0:00:35]}  fxg4 {[%clk 0:00:24]} 42. hxg4 {[%clk 0:00:29]}  Rf6 {[%clk 0:00:10]} 43. g5 {[%clk 0:00:18]}  Rf5 {[%clk 0:00:10]} 44. Rd8+ {[%clk 0:00:18]}  Kf7 {[%clk 0:00:10]} 45. Rh8 {[%clk 0:00:15]}  Qe1+ {[%clk 0:00:10]} 46. Kh2 {[%clk 0:00:15]}  Qe5+ {[%clk 0:00:07]} 47. Qxe5 {[%clk 0:00:15]}  Rxe5 {[%clk 0:00:08]} 48. Rxh7+ {[%clk 0:00:16]}  Ke6 {[%clk 0:00:08]} 49. Bh3+ {[%clk 0:00:16]}  Kd6 {[%clk 0:00:08]} 50. Rf7 {[%clk 0:00:14]}  Rxg5 {[%clk 0:00:07]} 51. Rf6+ {[%clk 0:00:14]}  Ke5 {[%clk 0:00:07]} 52. Rxa6 {[%clk 0:00:15]}  Nd5 {[%clk 0:00:08]} 53. b4 {[%clk 0:00:14]}  Nf4 {[%clk 0:00:08]} 54. Bf1 {[%clk 0:00:14]}  Ke4 {[%clk 0:00:07]} 55. Ra5 {[%clk 0:00:13]}  Kf3 {[%clk 0:00:04]} 56. Rxb5 {[%clk 0:00:13]}  Rg4 {[%clk 0:00:05]} 57. Re5 {[%clk 0:00:12]}  Kf2 {[%clk 0:00:05]} 58. Bh3 {[%clk 0:00:11]}  Rh4 {[%clk 0:00:06]} 0-1


[Site "https://www.chess.com"]

[Event "Titled Tuesday Blitz March 15 Late 2022"]
[White "Martin Barcelo, Carles"]
[Black "Sarana, Alexey"]
[WhiteFideId "24561444"]
[BlackFideId "24133795"]
[WhiteElo "1875"]
[BlackElo "2666"]
[Result "0-1"]
[Round "09"]
[TimeControl "180+1"]
[Date "2022.03.15"]
[WhiteClock "0:00:06"]
[BlackClock "0:01:28"]

1. e4 {[%clk 0:03:00]}  c5 {[%clk 0:02:45]} 2. Nf3 {[%clk 0:03:00]}  d6 {[%clk 0:02:46]} 3. Bb5+ {[%clk 0:02:58]}  Bd7 {[%clk 0:02:45]} 4. Bxd7+ {[%clk 0:02:58]}  Nxd7 {[%clk 0:02:45]} 5. O-O {[%clk 0:02:54]}  Ngf6 {[%clk 0:02:44]} 6. Qe2 {[%clk 0:02:54]}  e6 {[%clk 0:02:43]} 7. d4 {[%clk 0:02:53]}  cxd4 {[%clk 0:02:43]} 8. Nxd4 {[%clk 0:02:54]}  Rc8 {[%clk 0:02:43]} 9. c4 {[%clk 0:02:50]}  Be7 {[%clk 0:02:41]} 10. Nc3 {[%clk 0:02:49]}  a6 {[%clk 0:02:41]} 11. Be3 {[%clk 0:02:20]}  Qc7 {[%clk 0:02:33]} 12. Rac1 {[%clk 0:01:55]}  O-O {[%clk 0:02:33]} 13. b3 {[%clk 0:01:53]}  Rfd8 {[%clk 0:02:33]} 14. Rfd1 {[%clk 0:01:53]}  Qa5 {[%clk 0:02:33]} 15. Qd2 {[%clk 0:01:43]}  Ne5 {[%clk 0:02:28]} 16. f3 {[%clk 0:01:42]}  Qc7 {[%clk 0:02:23]} 17. Qf2 {[%clk 0:01:38]}  Nfd7 {[%clk 0:02:21]} 18. Nde2 {[%clk 0:01:36]}  Qa5 {[%clk 0:02:19]} 19. Na4 {[%clk 0:01:31]}  b5 {[%clk 0:02:15]} 20. Nb6 {[%clk 0:01:30]}  Rc6 {[%clk 0:02:13]} 21. Nxd7 {[%clk 0:01:24]}  Rxd7 {[%clk 0:02:02]} 22. cxb5 {[%clk 0:01:21]}  Rxc1 {[%clk 0:02:01]} 23. Nxc1 {[%clk 0:01:17]}  axb5 {[%clk 0:01:59]} 24. Qd2 {[%clk 0:01:15]}  Qa6 {[%clk 0:01:57]} 25. Nd3 {[%clk 0:01:13]}  Nc6 {[%clk 0:01:56]} 26. Rc1 {[%clk 0:01:00]}  h6 {[%clk 0:01:52]} 27. h3 {[%clk 0:00:52]}  d5 {[%clk 0:01:49]} 28. Rxc6 {[%clk 0:00:46]}  Qxc6 {[%clk 0:01:50]} 29. Ne5 {[%clk 0:00:46]}  Qb7 {[%clk 0:01:50]} 30. Nxd7 {[%clk 0:00:46]}  Qxd7 {[%clk 0:01:51]} 31. exd5 {[%clk 0:00:47]}  exd5 {[%clk 0:01:51]} 32. a4 {[%clk 0:00:38]}  bxa4 {[%clk 0:01:48]} 33. bxa4 {[%clk 0:00:39]}  Qb7 {[%clk 0:01:48]} 34. a5 {[%clk 0:00:37]}  Bb4 {[%clk 0:01:46]} 35. Qa2 {[%clk 0:00:29]}  Qe7 {[%clk 0:01:41]} 36. Bf2 {[%clk 0:00:22]}  d4 {[%clk 0:01:40]} 37. a6 {[%clk 0:00:17]}  Bc5 {[%clk 0:01:41]} 38. Qd5 {[%clk 0:00:15]}  Ba7 {[%clk 0:01:40]} 39. Qe4 {[%clk 0:00:14]}  Qd8 {[%clk 0:01:36]} 40. Qd3 {[%clk 0:00:13]}  Qd6 {[%clk 0:01:34]} 41. Kf1 {[%clk 0:00:14]}  g6 {[%clk 0:01:33]} 42. Kg1 {[%clk 0:00:14]}  h5 {[%clk 0:01:33]} 43. Qe4 {[%clk 0:00:14]}  d3 {[%clk 0:01:30]} 44. Bxa7 {[%clk 0:00:06]}  d2 {[%clk 0:01:30]} 45. Qe8+ {[%clk 0:00:06]}  Kg7 {[%clk 0:01:28]} 0-1


[Site "https://www.chess.com"]

[Event "Titled Tuesday Blitz March 15 Late 2022"]
[White "Mikhailov, Viacheslav"]
[Black "Araujo Filho, Luiz Antonio Coel"]
[WhiteFideId "4187369"]
[BlackFideId "2130661"]
[WhiteElo "2381"]
[BlackElo "2236"]
[Result "1-0"]
[Round "09"]
[TimeControl "180+1"]
[Date "2022.03.16"]
[WhiteClock "0:00:06"]
[BlackClock "0:00:02"]

1. c4 {[%clk 0:02:59]}  f5 {[%clk 0:02:59]} 2. g3 {[%clk 0:02:58]}  Nf6 {[%clk 0:03:00]} 3. Bg2 {[%clk 0:02:59]}  g6 {[%clk 0:03:01]} 4. Nc3 {[%clk 0:02:59]}  Bg7 {[%clk 0:03:01]} 5. Nf3 {[%clk 0:03:00]}  O-O {[%clk 0:03:02]} 6. O-O {[%clk 0:03:01]}  d6 {[%clk 0:03:02]} 7. d3 {[%clk 0:03:01]}  e5 {[%clk 0:03:02]} 8. Rb1 {[%clk 0:03:02]}  h6 {[%clk 0:02:58]} 9. b4 {[%clk 0:03:01]}  g5 {[%clk 0:02:59]} 10. Nd2 {[%clk 0:03:00]}  Nbd7 {[%clk 0:02:54]} 11. a4 {[%clk 0:02:56]}  f4 {[%clk 0:02:53]} 12. a5 {[%clk 0:02:55]}  Rb8 {[%clk 0:02:52]} 13. Nde4 {[%clk 0:02:45]}  Nxe4 {[%clk 0:02:48]} 14. Nxe4 {[%clk 0:02:46]}  Nf6 {[%clk 0:02:48]} 15. Nxf6+ {[%clk 0:02:41]}  Qxf6 {[%clk 0:02:45]} 16. b5 {[%clk 0:02:41]}  g4 {[%clk 0:02:40]} 17. Bd5+ {[%clk 0:02:26]}  Be6 {[%clk 0:02:37]} 18. e4 {[%clk 0:01:50]}  h5 {[%clk 0:02:07]} 19. Rb2 {[%clk 0:01:35]}  Kh7 {[%clk 0:01:59]} 20. Bxe6 {[%clk 0:01:23]}  Qxe6 {[%clk 0:01:59]} 21. f3 {[%clk 0:01:18]}  fxg3 {[%clk 0:01:50]} 22. hxg3 {[%clk 0:01:19]}  gxf3 {[%clk 0:01:48]} 23. Rxf3 {[%clk 0:01:18]}  Qg4 {[%clk 0:01:44]} 24. Rbf2 {[%clk 0:01:10]}  Rf6 {[%clk 0:01:36]} 25. Qf1 {[%clk 0:00:59]}  Rxf3 {[%clk 0:01:33]} 26. Rxf3 {[%clk 0:01:00]}  Rf8 {[%clk 0:01:04]} 27. Rxf8 {[%clk 0:00:55]}  Qxg3+ {[%clk 0:01:04]} 28. Kh1 {[%clk 0:00:36]}  Bxf8 {[%clk 0:01:05]} 29. Qf7+ {[%clk 0:00:23]}  Bg7 {[%clk 0:01:02]} 30. Qxh5+ {[%clk 0:00:22]}  Kg8 {[%clk 0:00:54]} 31. Qe8+ {[%clk 0:00:22]}  Kh7 {[%clk 0:00:54]} 32. Qh5+ {[%clk 0:00:23]}  Kg8 {[%clk 0:00:54]} 33. Qe2 {[%clk 0:00:23]}  Qh3+ {[%clk 0:00:45]} 34. Kg1 {[%clk 0:00:23]}  Qg3+ {[%clk 0:00:44]} 35. Kf1 {[%clk 0:00:23]}  a6 {[%clk 0:00:38]} 36. Be3 {[%clk 0:00:20]}  Bf6 {[%clk 0:00:27]} 37. Qg2 {[%clk 0:00:19]}  Qxg2+ {[%clk 0:00:21]} 38. Kxg2 {[%clk 0:00:20]}  Kf7 {[%clk 0:00:20]} 39. Kf3 {[%clk 0:00:16]}  Ke6 {[%clk 0:00:20]} 40. Kg4 {[%clk 0:00:17]}  Be7 {[%clk 0:00:18]} 41. Kf3 {[%clk 0:00:13]}  Bd8 {[%clk 0:00:18]} 42. Kg4 {[%clk 0:00:07]}  Be7 {[%clk 0:00:18]} 43. Bg5 {[%clk 0:00:07]}  Bxg5 {[%clk 0:00:13]} 44. Kxg5 {[%clk 0:00:08]}  c6 {[%clk 0:00:12]} 45. bxa6 {[%clk 0:00:06]}  bxa6 {[%clk 0:00:12]} 46. Kg6 {[%clk 0:00:07]}  d5 {[%clk 0:00:10]} 47. c5 {[%clk 0:00:05]}  dxe4 {[%clk 0:00:02]} 48. dxe4 {[%clk 0:00:06]}  Ke7 {[%clk 0:00:02]} 49. Kf5 {[%clk 0:00:06]} 1-0


[Site "https://www.chess.com"]

[Event "Titled Tuesday Blitz March 15 Late 2022"]
[White "Morris-Suzuki, Sophie"]
[Black "Jarocka, Liwia"]
[WhiteFideId "30922615"]
[BlackFideId "21807558"]
[WhiteElo "2467"]
[BlackElo "1896"]
[Result "1-0"]
[Round "09"]
[TimeControl "180+1"]
[Date "2022.03.16"]
[WhiteClock "0:00:45"]
[BlackClock "0:00:16"]

1. d4 {[%clk 0:03:00]}  Nf6 {[%clk 0:02:09]} 2. c4 {[%clk 0:03:01]}  e6 {[%clk 0:02:08]} 3. Nc3 {[%clk 0:03:01]}  Bb4 {[%clk 0:02:08]} 4. e3 {[%clk 0:03:02]}  O-O {[%clk 0:02:08]} 5. a3 {[%clk 0:03:02]}  Bxc3+ {[%clk 0:02:08]} 6. bxc3 {[%clk 0:03:03]}  d5 {[%clk 0:02:08]} 7. Bd3 {[%clk 0:03:04]}  c5 {[%clk 0:02:08]} 8. Ne2 {[%clk 0:03:04]}  dxc4 {[%clk 0:02:09]} 9. Bxc4 {[%clk 0:03:03]}  cxd4 {[%clk 0:02:10]} 10. cxd4 {[%clk 0:03:03]}  b6 {[%clk 0:02:11]} 11. O-O {[%clk 0:03:03]}  Bb7 {[%clk 0:02:11]} 12. f3 {[%clk 0:02:58]}  Nbd7 {[%clk 0:02:02]} 13. e4 {[%clk 0:02:58]}  Rc8 {[%clk 0:02:01]} 14. Bd3 {[%clk 0:02:58]}  e5 {[%clk 0:02:00]} 15. d5 {[%clk 0:02:47]}  Nc5 {[%clk 0:02:00]} 16. Bc2 {[%clk 0:02:43]}  Ba6 {[%clk 0:01:59]} 17. Re1 {[%clk 0:02:41]}  Bxe2 {[%clk 0:01:56]} 18. Qxe2 {[%clk 0:02:40]}  Ne8 {[%clk 0:01:55]} 19. f4 {[%clk 0:02:22]}  exf4 {[%clk 0:01:51]} 20. Bxf4 {[%clk 0:02:22]}  Nf6 {[%clk 0:01:43]} 21. Rad1 {[%clk 0:02:09]}  Re8 {[%clk 0:01:40]} 22. Qf3 {[%clk 0:02:09]}  Ncd7 {[%clk 0:01:11]} 23. Ba4 {[%clk 0:01:59]}  a6 {[%clk 0:01:10]} 24. e5 {[%clk 0:01:57]}  b5 {[%clk 0:01:06]} 25. Bb3 {[%clk 0:01:50]}  Qb6+ {[%clk 0:00:46]} 26. Kh1 {[%clk 0:01:49]}  Qa5 {[%clk 0:00:18]} 27. Bd2 {[%clk 0:01:36]}  Qxa3 {[%clk 0:00:16]} 28. exf6 {[%clk 0:01:34]}  Nxf6 {[%clk 0:00:16]} 29. Bg5 {[%clk 0:01:01]}  Rxe1+ {[%clk 0:00:15]} 30. Rxe1 {[%clk 0:01:01]}  Qd6 {[%clk 0:00:15]} 31. Bxf6 {[%clk 0:00:45]}  gxf6 {[%clk 0:00:16]} 32. Qg4+ {[%clk 0:00:45]} 1-0


[Site "https://www.chess.com"]